Workbook

Sheet 公布
A1: 2019年赤峰市中等职业学校、中小学校和幼儿园招聘 工作人员考试笔试成绩汇总表
A2: 序号 | B2: 准考证号 | C2: 教育学成绩 | D2: 教育心理学成绩 | E2: 政府会计制度成绩 | F2: 民族加分 | G2: 笔试成绩
A3: 1 | B3: 101010101 | C3: 0.00 | D3: 0.00 | F3: 0.00 | G3: =(C3+D3)/2+F3 -> 0.00
A4: 2 | B4: 101010102 | C4: 38.40 | D4: 19.60 | F4: 2.50 | G4: =(C4+D4)/2+F4 -> 31.50
A5: 3 | B5: 101010103 | C5: 58.00 | D5: 37.60 | F5: 0.00 | G5: =(C5+D5)/2+F5 -> 47.80
A6: 4 | B6: 101010104 | C6: 64.00 | D6: 48.00 | F6: 2.50 | G6: 58.50
A7: 5 | B7: 101010105 | C7: 54.80 | D7: 33.20 | F7: 0.00 | G7: 44.00
A8: 6 | B8: 101010106 | C8: 70.80 | D8: 57.20 | F8: 0.00 | G8: 64.00
A9: 7 | B9: 101010107 | C9: 70.00 | D9: 52.00 | F9: 0.00 | G9: 61.00
A10: 8 | B10: 101010108 | C10: 66.00 | D10: 61.60 | F10: 0.00 | G10: 63.80
A11: 9 | B11: 101010109 | C11: 64.40 | D11: 65.20 | F11: 2.50 | G11: 67.30
A12: 10 | B12: 101010110 | C12: 65.60 | D12: 59.20 | F12: 0.00 | G12: 62.40
A13: 11 | B13: 101010111 | C13: 56.40 | D13: 33.20 | F13: 2.50 | G13: 47.30
A14: 12 | B14: 101010112 | C14: 0.00 | D14: 0.00 | F14: 2.50 | G14: 2.50
A15: 13 | B15: 101010113 | C15: 48.40 | D15: 28.00 | F15: 0.00 | G15: 38.20
A16: 14 | B16: 101010114 | C16: 61.60 | D16: 50.00 | F16: 2.50 | G16: 58.30
A17: 15 | B17: 101010115 | C17: 48.40 | D17: 39.60 | F17: 0.00 | G17: 44.00
A18: 16 | B18: 101010116 | C18: 57.20 | D18: 42.40 | F18: 2.50 | G18: 52.30
A19: 17 | B19: 101010117 | C19: 64.40 | D19: 64.80 | F19: 0.00 | G19: 64.60
A20: 18 | B20: 101010118 | C20: 60.00 | D20: 41.60 | F20: 0.00 | G20: 50.80
A21: 19 | B21: 101010119 | C21: 70.80 | D21: 45.60 | F21: 2.50 | G21: 60.70
A22: 20 | B22: 101010120 | C22: 42.40 | D22: 16.80 | F22: 2.50 | G22: 32.10
A23: 21 | B23: 101010121 | C23: 30.40 | D23: 20.80 | F23: 0.00 | G23: 25.60
A24: 22 | B24: 101010122 | C24: 66.80 | D24: 67.20 | F24: 0.00 | G24: 67.00
A25: 23 | B25: 101010123 | C25: 40.40 | D25: 31.20 | F25: 0.00 | G25: 35.80
A26: 24 | B26: 101010124 | C26: 0.00 | D26: 0.00 | F26: 2.50 | G26: 2.50
A27: 25 | B27: 101010125 | C27: 52.80 | D27: 48.80 | F27: 0.00 | G27: 50.80
A28: 26 | B28: 101010126 | C28: 50.80 | D28: 22.40 | F28: 0.00 | G28: 36.60
A29: 27 | B29: 101010127 | C29: 0.00 | D29: 0.00 | F29: 2.50 | G29: 2.50
A30: 28 | B30: 101010128 | C30: 54.40 | D30: 39.20 | F30: 2.50 | G30: 49.30
A31: 29 | B31: 101010129 | C31: 61.20 | D31: 49.60 | F31: 0.00 | G31: 55.40
A32: 30 | B32: 101010130 | C32: 51.20 | D32: 34.00 | F32: 2.50 | G32: 45.10
A33: 31 | B33: 101010201 | C33: 0.00 | D33: 0.00 | F33: 0.00 | G33: 0.00
A34: 32 | B34: 101010202 | C34: 49.20 | D34: 27.20 | F34: 0.00 | G34: 38.20
A35: 33 | B35: 101010203 | C35: 66.80 | D35: 48.00 | F35: 2.50 | G35: 59.90
A36: 34 | B36: 101010204 | C36: 47.20 | D36: 24.80 | F36: 0.00 | G36: 36.00
A37: 35 | B37: 101010205 | C37: 53.60 | D37: 34.00 | F37: 0.00 | G37: 43.80
A38: 36 | B38: 101010206 | C38: 51.60 | D38: 38.00 | F38: 2.50 | G38: 47.30
A39: 37 | B39: 101010207 | C39: 0.00 | D39: 0.00 | F39: 2.50 | G39: 2.50
A40: 38 | B40: 101010208 | C40: 64.40 | D40: 36.80 | F40: 2.50 | G40: 53.10
A41: 39 | B41: 101010209 | C41: 58.80 | D41: 48.40 | F41: 0.00 | G41: 53.60
A42: 40 | B42: 101010210 | C42: 0.00 | D42: 0.00 | F42: 0.00 | G42: 0.00
A43: 41 | B43: 101010211 | C43: 52.00 | D43: 38.80 | F43: 2.50 | G43: 47.90
A44: 42 | B44: 101010212 | C44: 67.60 | D44: 59.60 | F44: 0.00 | G44: 63.60
A45: 43 | B45: 101010213 | C45: 59.20 | D45: 42.00 | F45: 2.50 | G45: 53.10
A46: 44 | B46: 101010214 | C46: 37.60 | D46: 24.40 | F46: 0.00 | G46: 31.00
A47: 45 | B47: 101010215 | C47: 60.80 | D47: 46.00 | F47: 0.00 | G47: 53.40
A48: 46 | B48: 101010216 | C48: 58.40 | D48: 53.20 | F48: 2.50 | G48: 58.30
A49: 47 | B49: 101010217 | C49: 50.00 | D49: 36.40 | F49: 2.50 | G49: 45.70
A50: 48 | B50: 101010218 | C50: 62.80 | D50: 51.60 | F50: 0.00 | G50: 57.20
A51: 49 | B51: 101010219 | C51: 31.60 | D51: 27.60 | F51: 2.50 | G51: 32.10
A52: 50 | B52: 101010220 | C52: 51.60 | D52: 41.60 | F52: 2.50 | G52: 49.10
A53: 51 | B53: 101010221 | C53: 0.00 | D53: 0.00 | F53: 0.00 | G53: 0.00
A54: 52 | B54: 101010222 | C54: 58.40 | D54: 36.80 | F54: 0.00 | G54: 47.60
A55: 53 | B55: 101010223 | C55: 23.60 | D55: 23.20 | F55: 2.50 | G55: 25.90
A56: 54 | B56: 101010224 | C56: 62.40 | D56: 56.80 | F56: 0.00 | G56: 59.60
A57: 55 | B57: 101010225 | C57: 60.00 | D57: 33.60 | F57: 0.00 | G57: 46.80
A58: 56 | B58: 101010226 | C58: 60.80 | D58: 51.60 | F58: 2.50 | G58: 58.70
A59: 57 | B59: 101010227 | C59: 65.60 | D59: 52.40 | F59: 2.50 | G59: 61.50
A60: 58 | B60: 101010228 | C60: 32.80 | D60: 20.40 | F60: 0.00 | G60: 26.60
A61: 59 | B61: 101010229 | C61: 56.00 | D61: 54.00 | F61: 0.00 | G61: 55.00
A62: 60 | B62: 101010230 | C62: 40.40 | D62: 25.20 | F62: 0.00 | G62: 32.80
A63: 61 | B63: 101010301 | C63: 65.60 | D63: 54.80 | F63: 0.00 | G63: 60.20
A64: 62 | B64: 101010302 | C64: 62.00 | D64: 53.60 | F64: 2.50 | G64: 60.30
A65: 63 | B65: 101010303 | C65: 50.00 | D65: 48.40 | F65: 2.50 | G65: 51.70
A66: 64 | B66: 101010304 | C66: 44.00 | D66: 30.80 | F66: 0.00 | G66: 37.40
A67: 65 | B67: 101010305 | C67: 64.00 | D67: 53.60 | F67: 2.50 | G67: 61.30
A68: 66 | B68: 101010306 | C68: 54.40 | D68: 37.60 | F68: 0.00 | G68: 46.00
A69: 67 | B69: 101010307 | C69: 19.60 | D69: 14.40 | F69: 2.50 | G69: =(C69+D69)/2+F69 -> 19.50
A70: 68 | B70: 101010308 | C70: 64.40 | D70: 48.00 | F70: 2.50 | G70: 58.70
A71: 69 | B71: 101010309 | C71: 65.20 | D71: 32.80 | F71: 2.50 | G71: 51.50
A72: 70 | B72: 101010310 | C72: 56.00 | D72: 36.00 | F72: 0.00 | G72: 46.00
A73: 71 | B73: 101010311 | C73: 34.80 | D73: 24.40 | F73: 0.00 | G73: 29.60
A74: 72 | B74: 101010312 | C74: 67.60 | D74: 62.40 | F74: 0.00 | G74: 65.00
A75: 73 | B75: 101010313 | C75: 40.00 | D75: 20.80 | F75: 0.00 | G75: 30.40
A76: 74 | B76: 101010314 | C76: 61.20 | D76: 40.00 | F76: 2.50 | G76: 53.10
A77: 75 | B77: 101010315 | C77: 0.00 | D77: 0.00 | F77: 2.50 | G77: 2.50
A78: 76 | B78: 101010316 | C78: 71.60 | D78: 63.60 | F78: 0.00 | G78: 67.60
A79: 77 | B79: 101010317 | C79: 50.80 | D79: 27.60 | F79: 0.00 | G79: 39.20
A80: 78 | B80: 101010318 | C80: 44.40 | D80: 41.60 | F80: 0.00 | G80: 43.00
A81: 79 | B81: 101010319 | C81: 25.20 | D81: 25.60 | F81: 0.00 | G81: 25.40
A82: 80 | B82: 101010320 | C82: 64.00 | D82: 69.60 | F82: 0.00 | G82: 66.80
A83: 81 | B83: 101010321 | C83: 67.60 | D83: 70.80 | F83: 0.00 | G83: 69.20
A84: 82 | B84: 101010322 | C84: 59.20 | D84: 49.60 | F84: 0.00 | G84: 54.40
A85: 83 | B85: 101010323 | C85: 68.00 | D85: 65.60 | F85: 0.00 | G85: 66.80
A86: 84 | B86: 101010324 | C86: 70.80 | D86: 56.00 | F86: 2.50 | G86: 65.90
A87: 85 | B87: 101010325 | C87: 64.00 | D87: 51.60 | F87: 0.00 | G87: 57.80
A88: 86 | B88: 101010326 | C88: 45.20 | D88: 28.40 | F88: 0.00 | G88: 36.80
A89: 87 | B89: 101010327 | C89: 69.60 | D89: 57.60 | F89: 0.00 | G89: 63.60
A90: 88 | B90: 101010328 | C90: 49.20 | D90: 50.80 | F90: 0.00 | G90: 50.00
A91: 89 | B91: 101010329 | C91: 60.00 | D91: 34.40 | F91: 2.50 | G91: 49.70
A92: 90 | B92: 101010330 | C92: 0.00 | D92: 0.00 | F92: 2.50 | G92: 2.50
A93: 91 | B93: 101010401 | C93: 51.20 | D93: 37.60 | F93: 0.00 | G93: 44.40
A94: 92 | B94: 101010402 | C94: 30.00 | D94: 18.00 | F94: 0.00 | G94: 24.00
A95: 93 | B95: 101010403 | C95: 63.60 | D95: 39.20 | F95: 2.50 | G95: 53.90
A96: 94 | B96: 101010404 | C96: 44.80 | D96: 31.20 | F96: 0.00 | G96: 38.00
A97: 95 | B97: 101010405 | C97: 66.40 | D97: 66.00 | F97: 0.00 | G97: 66.20
A98: 96 | B98: 101010406 | C98: 39.20 | D98: 20.40 | F98: 0.00 | G98: 29.80
A99: 97 | B99: 101010407 | C99: 0.00 | D99: 0.00 | F99: 2.50 | G99: 2.50
A100: 98 | B100: 101010408 | C100: 0.00 | D100: 0.00 | F100: 0.00 | G100: 0.00
A101: 99 | B101: 101010409 | C101: 77.20 | D101: 73.20 | F101: 0.00 | G101: 75.20
A102: 100 | B102: 101010410 | C102: 58.00 | D102: 43.20 | F102: 2.50 | G102: 53.10
A103: 101 | B103: 101010411 | C103: 70.40 | D103: 67.20 | F103: 0.00 | G103: 68.80
A104: 102 | B104: 101010412 | C104: 54.40 | D104: 46.80 | F104: 2.50 | G104: 53.10
A105: 103 | B105: 101010413 | C105: 64.00 | D105: 55.20 | F105: 0.00 | G105: 59.60
A106: 104 | B106: 101010414 | C106: 58.80 | D106: 32.40 | F106: 2.50 | G106: 48.10
A107: 105 | B107: 101010415 | C107: 66.80 | D107: 55.60 | F107: 0.00 | G107: 61.20
A108: 106 | B108: 101010416 | C108: 59.20 | D108: 26.40 | F108: 2.50 | G108: 45.30
A109: 107 | B109: 101010417 | C109: 53.60 | D109: 36.80 | F109: 0.00 | G109: 45.20
A110: 108 | B110: 101010418 | C110: 54.80 | D110: 45.20 | F110: 0.00 | G110: 50.00
A111: 109 | B111: 101010419 | C111: 55.20 | D111: 44.40 | F111: 2.50 | G111: 52.30
A112: 110 | B112: 101010420 | C112: 0.00 | D112: 0.00 | F112: 2.50 | G112: 2.50
A113: 111 | B113: 101010421 | C113: 54.00 | D113: 48.00 | F113: 0.00 | G113: 51.00
A114: 112 | B114: 101010422 | C114: 66.40 | D114: 35.60 | F114: 2.50 | G114: 53.50
A115: 113 | B115: 101010423 | C115: 67.20 | D115: 56.40 | F115: 0.00 | G115: 61.80
A116: 114 | B116: 101010424 | C116: 78.80 | D116: 78.80 | F116: 0.00 | G116: 78.80
A117: 115 | B117: 101010425 | C117: 61.60 | D117: 30.80 | F117: 0.00 | G117: 46.20
A118: 116 | B118: 101010426 | C118: 0.00 | D118: 0.00 | F118: 0.00 | G118: 0.00
A119: 117 | B119: 101010427 | C119: 60.80 | D119: 50.80 | F119: 0.00 | G119: 55.80
A120: 118 | B120: 101010428 | C120: 40.40 | D120: 19.20 | F120: 2.50 | G120: 32.30
A121: 119 | B121: 101010429 | C121: 45.60 | D121: 30.40 | F121: 0.00 | G121: 38.00
A122: 120 | B122: 101010430 | C122: 62.00 | D122: 48.40 | F122: 2.50 | G122: 57.70
A123: 121 | B123: 101010501 | C123: 0.00 | D123: 0.00 | F123: 2.50 | G123: 2.50
A124: 122 | B124: 101010502 | C124: 72.00 | D124: 67.60 | F124: 0.00 | G124: 69.80
A125: 123 | B125: 101010503 | C125: 71.20 | D125: 62.00 | F125: 2.50 | G125: 69.10
A126: 124 | B126: 101010504 | C126: 54.40 | D126: 62.40 | F126: 2.50 | G126: 60.90
A127: 125 | B127: 101010505 | C127: 58.80 | D127: 42.40 | F127: 2.50 | G127: 53.10
A128: 126 | B128: 101010506 | C128: 44.00 | D128: 20.00 | F128: 0.00 | G128: 32.00
A129: 127 | B129: 101010507 | C129: 50.00 | D129: 34.40 | F129: 0.00 | G129: 42.20
A130: 128 | B130: 101010508 | C130: 60.80 | D130: 56.40 | F130: 2.50 | G130: 61.10
A131: 129 | B131: 101010509 | C131: 0.00 | D131: 0.00 | F131: 0.00 | G131: 0.00
A132: 130 | B132: 101010510 | C132: 49.20 | D132: 29.60 | F132: 0.00 | G132: 39.40
A133: 131 | B133: 101010511 | C133: 58.00 | D133: 34.00 | F133: 0.00 | G133: =(C133+D133)/2+F133 -> 46.00
A134: 132 | B134: 101010512 | C134: 58.40 | D134: 41.20 | F134: 0.00 | G134: 49.80
A135: 133 | B135: 101010513 | C135: 56.40 | D135: 38.00 | F135: 0.00 | G135: 47.20
A136: 134 | B136: 101010514 | C136: 0.00 | D136: 0.00 | F136: 2.50 | G136: 2.50
A137: 135 | B137: 101010515 | C137: 50.40 | D137: 39.20 | F137: 0.00 | G137: 44.80
A138: 136 | B138: 101010516 | C138: 72.00 | D138: 58.40 | F138: 0.00 | G138: 65.20
A139: 137 | B139: 101010517 | C139: 64.00 | D139: 41.20 | F139: 0.00 | G139: 52.60
A140: 138 | B140: 101010518 | C140: 57.60 | D140: 29.60 | F140: 2.50 | G140: 46.10
A141: 139 | B141: 101010519 | C141: 61.20 | D141: 55.20 | F141: 0.00 | G141: 58.20
A142: 140 | B142: 101010520 | C142: 53.20 | D142: 32.00 | F142: 2.50 | G142: 45.10
A143: 141 | B143: 101010521 | C143: 38.00 | D143: 30.40 | F143: 2.50 | G143: 36.70
A144: 142 | B144: 101010522 | C144: 71.20 | D144: 46.40 | F144: 0.00 | G144: 58.80
A145: 143 | B145: 101010523 | C145: 57.60 | D145: 34.40 | F145: 0.00 | G145: 46.00
A146: 144 | B146: 101010524 | C146: 49.20 | D146: 29.20 | F146: 0.00 | G146: 39.20
A147: 145 | B147: 101010525 | C147: 30.00 | D147: 22.00 | F147: 0.00 | G147: 26.00
A148: 146 | B148: 101010526 | C148: 32.00 | D148: 24.00 | F148: 2.50 | G148: 30.50
A149: 147 | B149: 101010527 | C149: 58.40 | D149: 37.20 | F149: 0.00 | G149: 47.80
A150: 148 | B150: 101010528 | C150: 46.00 | D150: 27.60 | F150: 0.00 | G150: 36.80
A151: 149 | B151: 101010529 | C151: 56.40 | D151: 34.80 | F151: 0.00 | G151: 45.60
A152: 150 | B152: 101010530 | C152: 73.60 | D152: 76.40 | F152: 2.50 | G152: 77.50
A153: 151 | B153: 101010601 | C153: 44.80 | D153: 29.20 | F153: 0.00 | G153: 37.00
A154: 152 | B154: 101010602 | C154: 0.00 | D154: 0.00 | F154: 2.50 | G154: 2.50
A155: 153 | B155: 101010603 | C155: 63.60 | D155: 53.60 | F155: 0.00 | G155: 58.60
A156: 154 | B156: 101010604 | C156: 38.40 | D156: 20.00 | F156: 0.00 | G156: 29.20
A157: 155 | B157: 101010605 | C157: 77.20 | D157: 81.20 | F157: 0.00 | G157: 79.20
A158: 156 | B158: 101010606 | C158: 53.60 | D158: 40.80 | F158: 2.50 | G158: 49.70
A159: 157 | B159: 101010607 | C159: 77.20 | D159: 65.60 | F159: 2.50 | G159: 73.90
A160: 158 | B160: 101010608 | C160: 64.80 | D160: 58.80 | F160: 2.50 | G160: 64.30
A161: 159 | B161: 101010609 | C161: 53.60 | D161: 44.80 | F161: 0.00 | G161: 49.20
A162: 160 | B162: 101010610 | C162: 50.80 | D162: 38.00 | F162: 2.50 | G162: 46.90
A163: 161 | B163: 101010611 | C163: 63.60 | D163: 68.40 | F163: 2.50 | G163: 68.50
A164: 162 | B164: 101010612 | C164: 49.20 | D164: 30.80 | F164: 0.00 | G164: 40.00
A165: 163 | B165: 101010613 | C165: 51.20 | D165: 30.00 | F165: 0.00 | G165: 40.60
A166: 164 | B166: 101010614 | C166: 32.80 | D166: 17.60 | F166: 0.00 | G166: 25.20
A167: 165 | B167: 101010615 | C167: 54.80 | D167: 38.80 | F167: 2.50 | G167: 49.30
A168: 166 | B168: 101010616 | C168: 59.60 | D168: 36.80 | F168: 0.00 | G168: 48.20
A169: 167 | B169: 101010617 | C169: 50.80 | D169: 31.20 | F169: 2.50 | G169: 43.50
A170: 168 | B170: 101010618 | C170: 65.20 | D170: 43.20 | F170: 0.00 | G170: 54.20
A171: 169 | B171: 101010619 | C171: 0.00 | D171: 0.00 | F171: 0.00 | G171: 0.00
A172: 170 | B172: 101010620 | C172: 46.00 | D172: 27.20 | F172: 0.00 | G172: 36.60
A173: 171 | B173: 101010621 | C173: 56.80 | D173: 45.20 | F173: 2.50 | G173: 53.50
A174: 172 | B174: 101010622 | C174: 48.00 | D174: 26.80 | F174: 0.00 | G174: 37.40
A175: 173 | B175: 101010623 | C175: 64.00 | D175: 56.00 | F175: 2.50 | G175: 62.50
A176: 174 | B176: 101010624 | C176: 34.80 | D176: 16.80 | F176: 0.00 | G176: 25.80
A177: 175 | B177: 101010625 | C177: 58.80 | D177: 66.00 | F177: 2.50 | G177: 64.90
A178: 176 | B178: 101010626 | C178: 61.60 | D178: 50.40 | F178: 0.00 | G178: 56.00
A179: 177 | B179: 101010627 | C179: 59.60 | D179: 42.80 | F179: 0.00 | G179: 51.20
A180: 178 | B180: 101010628 | C180: 67.20 | D180: 72.40 | F180: 0.00 | G180: 69.80
A181: 179 | B181: 101010629 | C181: 38.40 | D181: 19.20 | F181: 0.00 | G181: 28.80
A182: 180 | B182: 101010630 | C182: 57.60 | D182: 45.20 | F182: 2.50 | G182: 53.90
A183: 181 | B183: 101010701 | C183: 50.40 | D183: 35.60 | F183: 0.00 | G183: 43.00
A184: 182 | B184: 101010702 | C184: 37.60 | D184: 23.60 | F184: 2.50 | G184: 33.10
A185: 183 | B185: 101010703 | C185: 63.60 | D185: 51.20 | F185: 0.00 | G185: 57.40
A186: 184 | B186: 101010704 | C186: 49.20 | D186: 31.20 | F186: 0.00 | G186: 40.20
A187: 185 | B187: 101010705 | C187: 64.00 | D187: 61.60 | F187: 0.00 | G187: 62.80
A188: 186 | B188: 101010706 | C188: 0.00 | D188: 0.00 | F188: 2.50 | G188: 2.50
A189: 187 | B189: 101010707 | C189: 39.20 | D189: 27.60 | F189: 0.00 | G189: 33.40
A190: 188 | B190: 101010708 | C190: 66.00 | D190: 61.60 | F190: 0.00 | G190: 63.80
A191: 189 | B191: 101010709 | C191: 72.40 | D191: 51.20 | F191: 0.00 | G191: 61.80
A192: 190 | B192: 101010710 | C192: 34.80 | D192: 16.80 | F192: 0.00 | G192: 25.80
A193: 191 | B193: 101010711 | C193: 48.40 | D193: 37.60 | F193: 0.00 | G193: 43.00
A194: 192 | B194: 101010712 | C194: 40.40 | D194: 22.40 | F194: 0.00 | G194: 31.40
A195: 193 | B195: 101010713 | C195: 56.80 | D195: 34.80 | F195: 0.00 | G195: 45.80
A196: 194 | B196: 101010714 | C196: 34.80 | D196: 23.20 | F196: 0.00 | G196: 29.00
A197: 195 | B197: 101010715 | C197: 27.60 | D197: 23.20 | F197: 2.50 | G197: =(C197+D197)/2+F197 -> 27.90
A198: 196 | B198: 101010716 | C198: 64.00 | D198: 74.40 | F198: 0.00 | G198: 69.20
A199: 197 | B199: 101010717 | C199: 48.40 | D199: 34.40 | F199: 2.50 | G199: 43.90
A200: 198 | B200: 101010718 | C200: 47.20 | D200: 37.20 | F200: 0.00 | G200: 42.20
... 4300 more rows
